{"text_format":"3","workbook":"xlsx","n_sheets":4,"sheets":["Začíname","Výdavky","Príjmy","Súhrn"],"not_rendered":{"charts":1,"defined_names":2},"read":"whole","date_system":"1900"}

{"sheet":"Začíname","index":0,"n_rows":8,"n_cols":2,"rows_kept":8}
[null,"INFORMÁCIE O TEJTO ŠABLÓNE"]
[null,"Pomocou tohto zošita rozpočtu podujatia môžete sledovať vzniknuté výdavky a získané príjmy v rámci podujatia."]
[null,"Vyplňte názov podujatia a zadajte podrobnosti do tabuliek v hárkoch Výdavky a Príjmy."]
[null,"Celkové výdavky a celkové príjmy sa vypočítajú automaticky."]
[null,"Súhrn zisku a straty a graf v hárku Súhrn sa aktualizujú automaticky."]
[null,"Poznámka: "]
[null,"V každom hárku sú v stĺpci A uvedené ďalšie pokyny. Tento text je zámerne skrytý. Ak chcete text odstrániť, vyberte stĺpec A a potom stlačte kláves ODSTRÁNIŤ. Ak chcete text zobraziť, vyberte stĺpec A a potom zmeňte farbu písma."]
[null,"Ak chcete získať ďalšie informácie o tabuľkách, v tabuľke stlačte kláves SHIFT a potom kláves F10, vyberte možnosť TABUĽKA a potom vyberte položku ALTERNATÍVNY TEXT."]

{"sheet":"Výdavky","index":1,"n_rows":33,"n_cols":8,"rows_kept":33,"merged":[[0,5,0,7],[1,1,1,7],[2,6,2,7]]}
["Do príslušných tabuliek tohto hárka zadajte odhadované a skutočné výdavky pre jednotlivé kategórie. Celkové výdavky sa vypočítajú automaticky. V bunkách v tomto stĺpci na nachádzajú užitočné pokyny na používanie tohto hárka. Začnite stlačením šípky nadol."]
["Prispôsobte nadpis tohto hárka a ostatných hárkov zadaním názov podujatia do bunky napravo.","Rozpočet podujatia \nNázov podujatia"]
["V bunke G3 je označenie Výdavky.",{"$nulls":5}," Výdavky"]
["V bunke G4 je označenie Odhadované a v bunke H4 je označenie Skutočné.",{"$nulls":5},"Odhadované","Skutočné"]
["V bunke napravo je označenie Celkové výdavky. Odhadované celkové výdavky v bunke G5 sa vypočítajú automaticky. Skutočné celkové výdavky a údajový pruh znázorňujúci skutočné celkové výdavky v bunke H5 sa aktualizujú automaticky. Ďalší pokyn sa nachádza v bunke A7.","Celkové výdavky",{"$nulls":4},{"$f":"SUM(C12,C20,C26,C33,G12,G20,G25)","v":{"v":1145,"d":"1,145.00 EUR"}},{"$f":"SUM(D12,D20,D26,D33,H12,H20,H25)","v":{"v":395,"d":"395.00 EUR"}}]
[]
["Do tabuľky začínajúcej v bunke napravo zadajte výdavky na priestory a do tabuľky začínajúcej v bunke F7 zadajte výdavky na občerstvenie. Ďalší pokyn je v bunke A14.","Priestory","Odhadované","Skutočné",null,"Občerstvenie","Odhadované","Skutočné"]
[null,"Poplatky za miestnosť a sálu",{"v":500,"d":"500.00 EUR"},{"v":250,"d":"250.00 EUR"},null,"Strava"]
[null,"Personál priestorov",{"v":400,"d":"400.00 EUR"},{"v":50,"d":"50.00 EUR"},null,"Nápoje"]
[null,"Vybavenie",{"$nulls":3},"Obrusy"]
[null,"Stoly a stoličky",{"$nulls":3},"Personál a výpomoc"]
[null,"Celková hodnota",{"$f":"SUBTOTAL(109,VýdavkyNaPriestory[Odhadované])","v":{"v":900,"d":"900.00 EUR"}},{"$f":"SUBTOTAL(109,VýdavkyNaPriestory[Skutočné])","v":{"v":300,"d":"300.00 EUR"}},null,"Celková hodnota",{"$f":"SUBTOTAL(109,VýdavkyNaObčerstvenie[Odhadované])","v":{"v":0,"d":"0.00 EUR"}},{"$f":"SUBTOTAL(109,VýdavkyNaObčerstvenie[Skutočné])","v":{"v":0,"d":"0.00 EUR"}}]
[]
["Do tabuľky začínajúcej v bunke napravo zadajte výdavky na výzdoba a do tabuľky začínajúcej v bunke F14 zadajte výdavky na program. Ďalší pokyn je v bunke A22.","Výzdoba","Odhadované","Skutočné",null,"Program","Odhadované","Skutočné"]
[null,"Kvety",{"v":200,"d":"200.00 EUR"},{"v":50,"d":"50.00 EUR"},null,"Vystupujúci"]
[null,"Sviečky",{"$nulls":3},"Moderátori"]
[null,"Osvetlenie",{"$nulls":3},"Cestovné"]
[null,"Balóny",{"$nulls":3},"Hotel"]
[null,"Papierové materiály",{"$nulls":3},"Iné"]
[null,"Celková hodnota",{"$f":"SUBTOTAL(109,VýdavkyNaVýzdoba[Odhadované])","v":{"v":200,"d":"200.00 EUR"}},{"$f":"SUBTOTAL(109,VýdavkyNaVýzdoba[Skutočné])","v":{"v":50,"d":"50.00 EUR"}},null,"Celková hodnota",{"$f":"SUBTOTAL(109,VýdavkyNaProgram[Odhadované])","v":{"v":0,"d":"0.00 EUR"}},{"$f":"SUBTOTAL(109,VýdavkyNaProgram[Skutočné])","v":{"v":0,"d":"0.00 EUR"}}]
[]
["Do tabuľky začínajúcej v bunke napravo zadajte výdavky na propagácia a do tabuľky začínajúcej v bunke F22 zadajte výdavky na ceny. Ďalší pokyn je v bunke A28.","Propagácia","Odhadované","Skutočné",null,"Ceny","Odhadované","Skutočné"]
[null,"Grafické práce",{"v":45,"d":"45.00 EUR"},{"v":45,"d":"45.00 EUR"},null,"Stuhy, plakety a trofeje"]
[null,"Fotokopírovanie a tlač",{"$nulls":3},"Dary"]
[null,"Poštovné",{"$nulls":3},"Celková hodnota",{"$f":"SUBTOTAL(109,VýdavkyNaCeny[Odhadované])","v":{"v":0,"d":"0.00 EUR"}},{"$f":"SUBTOTAL(109,VýdavkyNaCeny[Skutočné])","v":{"v":0,"d":"0.00 EUR"}}]
[null,"Celková hodnota",{"$f":"SUBTOTAL(109,VýdavkyNaPropagácia[Odhadované])","v":{"v":45,"d":"45.00 EUR"}},{"$f":"SUBTOTAL(109,VýdavkyNaPropagácia[Skutočné])","v":{"v":45,"d":"45.00 EUR"}}]
[]
["Do tabuľky začínajúcej v bunke napravo zadajte rôzne výdavky.","Rôzne","Odhadované","Skutočné"]
[null,"Telefón"]
[null,"Doprava"]
[null,"Kancelárske potreby"]
[null,"Faxové služby"]
[null,"Celková hodnota",{"$f":"SUBTOTAL(109,RozličnéVýdavky[Odhadované])","v":{"v":0,"d":"0.00 EUR"}},{"$f":"SUBTOTAL(109,RozličnéVýdavky[Skutočné])","v":{"v":0,"d":"0.00 EUR"}}]

{"sheet":"Príjmy","index":2,"n_rows":30,"n_cols":7,"rows_kept":30,"merged":[[1,1,1,6],[2,5,2,6]]}
["Do príslušných tabuliek tohto hárka zadajte odhadované a skutočné príjmy pre jednotlivé kategórie. Celkové príjmy sa vypočítajú automaticky. V bunkách v tomto stĺpci na nachádzajú užitočné pokyny na používanie tohto hárka. Začnite stlačením šípky nadol."]
["Názov podujatia v bunke napravo sa aktualizuje automaticky.",{"$f":"Výdavky!B2","v":"Rozpočet podujatia \nNázov podujatia"}]
["V bunke F3 je označenie Príjmy.",{"$nulls":4}," Príjmy"]
["V bunke F4 je označenie Odhadované a v bunke G4 je označenie Skutočné.",{"$nulls":4},"Odhadované","Skutočné"]
["V bunke napravo je označenie Celkové príjmy. Odhadované celkové príjmy v bunke F5 sa vypočítajú automaticky. Skutočné celkové príjmy a údajový pruh znázorňujúci skutočné celkové príjmy v bunke G5 sa aktualizujú automaticky.","Celkové príjmy",{"$nulls":3},{"$f":"SUM(Vstupenky[[#Totals],[Odhadované spolu]],ReklamyVPrograme[[#Totals],[Odhadované spolu]],VystavovateliaAPredajcovia[[#Totals],[Odhadované spolu]],PredajPoložiek[[#Totals],[Odhadované spolu]])","v":{"v":1936,"d":"1,936.00 EUR"}},{"$f":"SUM(Vstupenky[[#Totals],[Skutočné spolu]],ReklamyVPrograme[[#Totals],[Skutočné spolu]],VystavovateliaAPredajcovia[[#Totals],[Skutočné spolu]],PredajPoložiek[[#Totals],[Skutočné spolu]])","v":{"v":1831,"d":"1,831.00 EUR"}}]
["V bunke napravo je označenie Vstupenky.","Vstupenky"]
["Do tabuľky začínajúcej v bunke napravo zadajte odhadované a skutočné počet vstupeniek a ceny vstupeniek. Odhadované a skutočné príjmy zo vstupenky sa vypočítajú automaticky. Ďalší pokyn sa nachádza v bunke A12.","Odhadované","Skutočné","Typ","Cena","Odhadované spolu","Skutočné spolu"]
[null,300,278,"Dospelí",{"v":5,"d":"5.00 EUR"},{"$f":"B8*E8","v":{"v":1500,"d":"1,500.00 EUR"}},{"$f":"C8*E8","v":{"v":1390,"d":"1,390.00 EUR"}}]
[null,197,195,"Deti",{"v":2,"d":"2.00 EUR"},{"$f":"B9*E9","v":{"v":394,"d":"394.00 EUR"}},{"$f":"C9*E9","v":{"v":390,"d":"390.00 EUR"}}]
[null,42,51,"Iné",{"v":1,"d":"1.00 EUR"},{"v":42,"d":"42.00 EUR"},{"v":51,"d":"51.00 EUR"}]
[null," ",{"$nulls":3},{"$f":"SUBTOTAL(109,Vstupenky[Odhadované spolu])","v":{"v":1936,"d":"1,936.00 EUR"}},{"$f":"SUBTOTAL(109,Vstupenky[Skutočné spolu])","v":{"v":1831,"d":"1,831.00 EUR"}}]
["V bunke napravo je označenie Reklamy v programe.","Reklamy v programe"]
["Do tabuľky začínajúcej v bunke napravo zadajte odhadované a skutočné počet reklamy v programe a ceny za reklamy. Odhadované a skutočné príjmy z reklamy sa vypočítajú automaticky. Ďalší pokyn sa nachádza v bunke A18.","Odhadované","Skutočné","Typ","Cena","Odhadované spolu","Skutočné spolu"]
[{"$nulls":3},"Titulné strany",null,{"$f":"B14*E14","v":{"v":0,"d":"0.00 EUR"}},{"$f":"C14*E14","v":{"v":0,"d":"0.00 EUR"}}]
[{"$nulls":3},"Polstrany",null,{"$f":"B15*E15","v":{"v":0,"d":"0.00 EUR"}},{"$f":"C15*E15","v":{"v":0,"d":"0.00 EUR"}}]
[{"$nulls":3},"Štvrťstrany",null,{"v":0,"d":"0.00 EUR"},{"v":0,"d":"0.00 EUR"}]
[null," ",{"$nulls":3},{"$f":"SUBTOTAL(109,ReklamyVPrograme[Odhadované spolu])","v":{"v":0,"d":"0.00 EUR"}},{"$f":"SUBTOTAL(109,ReklamyVPrograme[Skutočné spolu])","v":{"v":0,"d":"0.00 EUR"}}]
["V bunke napravo je označenie Vystavovatelia a predajcovia.","Vystavovatelia a predajcovia"]
["Do tabuľky začínajúcej v bunke napravo zadajte odhadované a skutočné počet vystavovatelia a predajcovia a ceny za stánky. Odhadované a skutočné príjmy sa vypočítajú automaticky. Ďalší pokyn sa nachádza v bunke A24.","Odhadované","Skutočné","Typ","Cena","Odhadované spolu","Skutočné spolu"]
[{"$nulls":3},"Veľké stánky",null,{"$f":"B20*E20","v":{"v":0,"d":"0.00 EUR"}},{"$f":"C20*E20","v":{"v":0,"d":"0.00 EUR"}}]
[{"$nulls":3},"Stredne veľké stánky",null,{"$f":"B21*E21","v":{"v":0,"d":"0.00 EUR"}},{"$f":"C21*E21","v":{"v":0,"d":"0.00 EUR"}}]
[{"$nulls":3},"Malé stánky",null,{"v":0,"d":"0.00 EUR"},{"v":0,"d":"0.00 EUR"}]
[null," ",{"$nulls":3},{"$f":"SUBTOTAL(109,VystavovateliaAPredajcovia[Odhadované spolu])","v":{"v":0,"d":"0.00 EUR"}},{"$f":"SUBTOTAL(109,VystavovateliaAPredajcovia[Skutočné spolu])","v":{"v":0,"d":"0.00 EUR"}}]
["V bunke napravo je označenie Predaj položiek.","Predaj položiek"]
["Do tabuľky začínajúcej v bunke napravo zadajte odhadované a skutočné počet predaj položiek a ceny za položky. Odhadované a skutočné príjmy sa vypočítajú automaticky.","Odhadované","Skutočné","Typ","Cena","Odhadované spolu","Skutočné spolu"]
[{"$nulls":3},"Položky",null,{"$f":"B26*E26","v":{"v":0,"d":"0.00 EUR"}},{"$f":"C26*E26","v":{"v":0,"d":"0.00 EUR"}}]
[{"$nulls":3},"Položky",null,{"$f":"B27*E27","v":{"v":0,"d":"0.00 EUR"}},{"$f":"C27*E27","v":{"v":0,"d":"0.00 EUR"}}]
[{"$nulls":3},"Položky",null,{"v":0,"d":"0.00 EUR"},{"v":0,"d":"0.00 EUR"}]
[{"$nulls":3},"Položky",null,{"v":0,"d":"0.00 EUR"},{"v":0,"d":"0.00 EUR"}]
[null," ",{"$nulls":3},{"$f":"SUBTOTAL(109,PredajPoložiek[Odhadované spolu])","v":{"v":0,"d":"0.00 EUR"}},{"$f":"SUBTOTAL(109,PredajPoložiek[Skutočné spolu])","v":{"v":0,"d":"0.00 EUR"}}]

{"sheet":"Súhrn","index":3,"n_rows":9,"n_cols":4,"rows_kept":9,"merged":[[1,1,1,3],[2,2,2,3],[8,1,8,4],[9,1,9,3]]}
["Súhrn zisku a straty a graf zobrazujúci celkové príjmy a výdavky v tomto hárku sa aktualizujú automaticky. V bunkách v tomto stĺpci na nachádzajú užitočné pokyny na používanie tohto hárka. Začnite stlačením šípky nadol."]
["Názov podujatia v bunke napravo sa aktualizuje automaticky.",{"$f":"Výdavky!B2","v":"Rozpočet podujatia \nNázov podujatia"}]
["V bunke C3 je označenie Súhrn zisku a straty. Ďalší pokyn je v bunke A5.",null,"Súhrn zisku a straty"]
[]
["Tabuľka celková hodnota začínajúca v bunke napravo sa aktualizuje automaticky. Ďalší pokyn je v bunke A9.","Celková hodnota","Odhadované","Skutočné"]
[null,"Celkové príjmy",{"$f":"Príjmy!F5","v":{"v":1936,"d":"1,936.00 EUR"}},{"$f":"Príjmy!G5","v":{"v":1831,"d":"1,831.00 EUR"}}]
[null,"Celkové výdavky",{"$f":"Výdavky!G5","v":{"v":1145,"d":"1,145.00 EUR"}},{"$f":"Výdavky!H5","v":{"v":395,"d":"395.00 EUR"}}]
[null,"Celkový zisk (alebo strata)",{"$f":"C6-C7","v":{"v":791,"d":"791.00 EUR"}},{"$f":"D6-D7","v":{"v":1436,"d":"1,436.00 EUR"}}]
["V bunke napravo je skupinový stĺpcový graf zobrazujúci porovnanie odhadované a skutočné celkových príjmy a celkových výdavky.","V tejto bunke je skupinový stĺpcový graf zobrazujúci porovnanie odhadované a skutočné celkových príjmy a celkových výdavky."]